{"text_format":"1","workbook":"xlsx","n_sheets":3,"sheets":["مجمع","Sheet2","قاعدة العملاء"],"not_rendered":{"charts":0,"images":0,"macros":1,"external_links":0,"defined_names":0,"comments":0,"pivot_tables":0},"unopened":[],"bounds":{"document_bytes":16777216,"sheet_cells":100000,"rows_first":2000,"rows_last":500,"rows_between":2000,"halvings":0,"cell_chars":16384,"cell_head_chars":4096},"cells_cut":0,"cells_raw":0,"read":"whole","date_system":"1900"}

{"sheet":"مجمع","index":0,"n_rows":0,"n_cols":0,"rows_kept":0,"cut":false,"hidden":false,"merged":[]}

{"sheet":"Sheet2","index":1,"n_rows":0,"n_cols":0,"rows_kept":0,"cut":false,"hidden":false,"merged":[]}

{"sheet":"قاعدة العملاء","index":2,"n_rows":111,"n_cols":48,"rows_kept":111,"cut":false,"hidden":false,"merged":[]}
[null,"رقم\n العميل","اسم العميل","الرصيد السابق","التاريخ","المبيعات","تحصيل نقدى","تحصيل محفظة","الرصيد الباقى قبل الخصم","خصم ممنوح","الرصيد الباقى بعد الخصم",null,"التاريخ","2024-07-01",null,null,null,null,null,null,null,null,null,null,null,null,null,null,null,null,null,null,null,null,null,null,null,null,"رقم\n العميل","اسم العميل","الرصيد السابق","التاريخ","المبيعات","تحصيل نقدى","تحصيل محفظة","الرصيد الباقى قبل الخصم","خصم ممنوح","الرصيد الباقى بعد الخصم"]
[null,1,{"$f":"+AA2","v":0},850,{"$f":"IF($N$1=\"\",\"\",$N$1)","v":"2024-07-01"},500,null,null,{"$f":"+F2+D2-G2-H2","v":1350},null,{"$f":"+I2-J2","v":1350},null,null,null,null,null,null,null,null,null,null,null,null,null,null,null,null,null,null,null,null,null,null,null,null,null,null,null,1,0,850,"2024-07-01",500,null,null,1350]
[null,2,{"$f":"+AA3","v":0},1250,{"$f":"IF($N$1=\"\",\"\",$N$1)","v":"2024-07-01"},400,null,null,1650,null,1650,null,null,null,null,null,null,null,null,null,null,null,null,null,null,null,null,null,null,null,null,null,null,null,null,null,null,null,2,0,1250,"2024-07-01",400,null,null,1650]
[null,3,0,1650,"2024-07-01",600,null,null,2250,null,2250,null,null,null,null,null,null,null,null,null,null,null,null,null,null,null,null,null,null,null,null,null,null,null,null,null,null,null,3,0,1650,"2024-07-01",600,null,null,2250]
[null,4,0,2050,"2024-07-01",350,null,null,{"$f":"+F5+D5-G5-H5","v":2400},null,{"$f":"+I5-J5","v":2400},null,null,null,null,null,null,null,null,null,null,null,null,null,null,null,null,null,null,null,null,null,null,null,null,null,null,null,4,0,2050,"2024-07-01",350,null,null,2400]
[null,5,0,2450,"2024-07-01",250,null,null,2700,null,2700,null,null,null,null,null,null,null,null,null,null,null,null,null,null,null,null,null,null,null,null,null,null,null,null,null,null,null,5,0,2450,"2024-07-01",250,null,null,2700]
[null,6,0,850,"2024-07-01",500,null,null,1350,null,1350,null,null,null,null,null,null,null,null,null,null,null,null,null,null,null,null,null,null,null,null,null,null,null,null,null,null,null,6,0,850,"2024-07-01",500,null,null,1350]
[null,7,0,1250,"2024-07-01",400,null,null,1650,null,1650,null,null,null,null,null,null,null,null,null,null,null,null,null,null,null,null,null,null,null,null,null,null,null,null,null,null,null,7,0,1250,"2024-07-01",400,null,null,1650]
[null,8,0,1650,"2024-07-01",600,null,null,2250,null,2250,null,null,null,null,null,null,null,null,null,null,null,null,null,null,null,null,null,null,null,null,null,null,null,null,null,null,null,8,0,1650,"2024-07-01",600,null,null,2250]
[null,9,0,2050,"2024-07-01",350,null,null,{"$f":"+F10+D10-G10-H10","v":2400},null,{"$f":"+I10-J10","v":2400},null,null,null,null,null,null,null,null,null,null,null,null,null,null,null,null,null,null,null,null,null,null,null,null,null,null,null,9,0,2050,"2024-07-01",350,null,null,2400]
[null,10,0,2450,"2024-07-01",250,null,null,2700,null,2700,null,null,null,null,null,null,null,null,null,null,null,null,null,null,null,null,null,null,null,null,null,null,null,null,null,null,null,10,0,2450,"2024-07-01",250,null,null,2700]
[null,11,0,850,"2024-07-01",500,null,null,1350,null,1350,null,null,null,null,null,null,null,null,null,null,null,null,null,null,null,null,null,null,null,null,null,null,null,null,null,null,null,11,0,850,"2024-07-01",500,null,null,1350]
[null,12,0,1250,"2024-07-01",400,null,null,1650,null,1650,null,null,null,null,null,null,null,null,null,null,null,null,null,null,null,null,null,null,null,null,null,null,null,null,null,null,null,12,0,1250,"2024-07-01",400,null,null,1650]
[null,13,0,1650,"2024-07-01",600,null,null,2250,null,2250,null,null,null,null,null,null,null,null,null,null,null,null,null,null,null,null,null,null,null,null,null,null,null,null,null,null,null,13,0,1650,"2024-07-01",600,null,null,2250]
[null,14,0,2050,"2024-07-01",350,null,null,2400,null,2400,null,null,null,null,null,null,null,null,null,null,null,null,null,null,null,null,null,null,null,null,null,null,null,null,null,null,null,14,0,2050,"2024-07-01",350,null,null,2400]
[null,15,0,2450,"2024-07-01",250,null,null,2700,null,2700,null,null,null,null,null,null,null,null,null,null,null,null,null,null,null,null,null,null,null,null,null,null,null,null,null,null,null,15,0,2450,"2024-07-01",250,null,null,2700]
[null,16,0,850,"2024-07-01",500,null,null,1350,null,1350,null,null,null,null,null,null,null,null,null,null,null,null,null,null,null,null,null,null,null,null,null,null,null,null,null,null,null,16,0,850,"2024-07-01",500,null,null,1350]
[null,17,0,1250,"2024-07-01",400,null,null,1650,null,1650,null,null,null,null,null,null,null,null,null,null,null,null,null,null,null,null,null,null,null,null,null,null,null,null,null,null,null,17,0,1250,"2024-07-01",400,null,null,1650]
[null,18,0,1650,"2024-07-01",600,null,null,2250,null,2250,null,null,null,null,null,null,null,null,null,null,null,null,null,null,null,null,null,null,null,null,null,null,null,null,null,null,null,18,0,1650,"2024-07-01",600,null,null,2250]
[null,19,0,2050,"2024-07-01",350,null,null,2400,null,2400,null,null,null,null,null,null,null,null,null,null,null,null,null,null,null,null,null,null,null,null,null,null,null,null,null,null,null,19,0,2050,"2024-07-01",350,null,null,2400]
[null,20,0,2450,"2024-07-01",250,null,null,2700,null,2700,null,null,null,null,null,null,null,null,null,null,null,null,null,null,null,null,null,null,null,null,null,null,null,null,null,null,null,20,0,2450,"2024-07-01",250,null,null,2700]
[null,21,0,850,"2024-07-01",500,null,null,1350,null,1350,null,null,null,null,null,null,null,null,null,null,null,null,null,null,null,null,null,null,null,null,null,null,null,null,null,null,null,21,0,850,"2024-07-01",500,null,null,1350]
[null,22,0,1250,"2024-07-01",400,null,null,1650,null,1650,null,null,null,null,null,null,null,null,null,null,null,null,null,null,null,null,null,null,null,null,null,null,null,null,null,null,null,22,0,1250,"2024-07-01",400,null,null,1650]
[null,23,0,1650,"2024-07-01",600,null,null,2250,null,2250,null,null,null,null,null,null,null,null,null,null,null,null,null,null,null,null,null,null,null,null,null,null,null,null,null,null,null,23,0,1650,"2024-07-01",600,null,null,2250]
[null,24,0,2050,"2024-07-01",350,null,null,2400,null,2400,null,null,null,null,null,null,null,null,null,null,null,null,null,null,null,null,null,null,null,null,null,null,null,null,null,null,null,24,0,2050,"2024-07-01",350,null,null,2400]
[null,25,0,2450,"2024-07-01",250,null,null,2700,null,2700,null,null,null,null,null,null,null,null,null,null,null,null,null,null,null,null,null,null,null,null,null,null,null,null,null,null,null,25,0,2450,"2024-07-01",250,null,null,2700]
[null,26,0,850,"2024-07-01",500,null,null,1350,null,1350,null,null,null,null,null,null,null,null,null,null,null,null,null,null,null,null,null,null,null,null,null,null,null,null,null,null,null,26,0,850,"2024-07-01",500,null,null,1350]
[null,27,0,1250,"2024-07-01",400,null,null,1650,null,1650,null,null,null,null,null,null,null,null,null,null,null,null,null,null,null,null,null,null,null,null,null,null,null,null,null,null,null,27,0,1250,"2024-07-01",400,null,null,1650]
[null,28,0,1650,"2024-07-01",600,null,null,2250,null,2250,null,null,null,null,null,null,null,null,null,null,null,null,null,null,null,null,null,null,null,null,null,null,null,null,null,null,null,28,0,1650,"2024-07-01",600,null,null,2250]
[null,29,0,2050,"2024-07-01",350,null,null,2400,null,2400,null,null,null,null,null,null,null,null,null,null,null,null,null,null,null,null,null,null,null,null,null,null,null,null,null,null,null,29,0,2050,"2024-07-01",350,null,null,2400]
[null,30,0,2450,"2024-07-01",250,null,null,2700,null,2700,null,null,null,null,null,null,null,null,null,null,null,null,null,null,null,null,null,null,null,null,null,null,null,null,null,null,null,30,0,2450,"2024-07-01",250,null,null,2700]
[null,31,0,850,"2024-07-01",500,null,null,1350,null,1350,null,null,null,null,null,null,null,null,null,null,null,null,null,null,null,null,null,null,null,null,null,null,null,null,null,null,null,31,0,850,"2024-07-01",500,null,null,1350]
[null,32,0,1250,"2024-07-01",400,null,null,1650,null,1650,null,null,null,null,null,null,null,null,null,null,null,null,null,null,null,null,null,null,null,null,null,null,null,null,null,null,null,32,0,1250,"2024-07-01",400,null,null,1650]
[null,33,0,1650,"2024-07-01",600,null,null,2250,null,2250,null,null,null,null,null,null,null,null,null,null,null,null,null,null,null,null,null,null,null,null,null,null,null,null,null,null,null,33,0,1650,"2024-07-01",600,null,null,2250]
[null,34,0,2050,"2024-07-01",350,null,null,2400,null,2400,null,null,null,null,null,null,null,null,null,null,null,null,null,null,null,null,null,null,null,null,null,null,null,null,null,null,null,34,0,2050,"2024-07-01",350,null,null,2400]
[null,35,0,2450,"2024-07-01",250,null,null,2700,null,2700,null,null,null,null,null,null,null,null,null,null,null,null,null,null,null,null,null,null,null,null,null,null,null,null,null,null,null,35,0,2450,"2024-07-01",250,null,null,2700]
[null,36,0,850,"2024-07-01",500,null,null,1350,null,1350,null,null,null,null,null,null,null,null,null,null,null,null,null,null,null,null,null,null,null,null,null,null,null,null,null,null,null,36,0,850,"2024-07-01",500,null,null,1350]
[null,37,0,1250,"2024-07-01",400,null,null,1650,null,1650,null,null,null,null,null,null,null,null,null,null,null,null,null,null,null,null,null,null,null,null,null,null,null,null,null,null,null,37,0,1250,"2024-07-01",400,null,null,1650]
[null,38,0,1650,"2024-07-01",600,null,null,2250,null,2250,null,null,null,null,null,null,null,null,null,null,null,null,null,null,null,null,null,null,null,null,null,null,null,null,null,null,null,38,0,1650,"2024-07-01",600,null,null,2250]
[null,39,0,2050,"2024-07-01",350,null,null,2400,null,2400,null,null,null,null,null,null,null,null,null,null,null,null,null,null,null,null,null,null,null,null,null,null,null,null,null,null,null,39,0,2050,"2024-07-01",350,null,null,2400]
[null,40,0,2450,"2024-07-01",250,null,null,2700,null,2700,null,null,null,null,null,null,null,null,null,null,null,null,null,null,null,null,null,null,null,null,null,null,null,null,null,null,null,40,0,2450,"2024-07-01",250,null,null,2700]
[null,41,0,850,"2024-07-01",500,null,null,1350,null,1350,null,null,null,null,null,null,null,null,null,null,null,null,null,null,null,null,null,null,null,null,null,null,null,null,null,null,null,41,0,850,"2024-07-01",500,null,null,1350]
[null,42,0,1250,"2024-07-01",400,null,null,1650,null,1650,null,null,null,null,null,null,null,null,null,null,null,null,null,null,null,null,null,null,null,null,null,null,null,null,null,null,null,42,0,1250,"2024-07-01",400,null,null,1650]
[null,43,0,1650,"2024-07-01",600,null,null,2250,null,2250,null,null,null,null,null,null,null,null,null,null,null,null,null,null,null,null,null,null,null,null,null,null,null,null,null,null,null,43,0,1650,"2024-07-01",600,null,null,2250]
[null,44,0,2050,"2024-07-01",350,null,null,2400,null,2400,null,null,null,null,null,null,null,null,null,null,null,null,null,null,null,null,null,null,null,null,null,null,null,null,null,null,null,44,0,2050,"2024-07-01",350,null,null,2400]
[null,45,0,2450,"2024-07-01",250,null,null,2700,null,2700,null,null,null,null,null,null,null,null,null,null,null,null,null,null,null,null,null,null,null,null,null,null,null,null,null,null,null,45,0,2450,"2024-07-01",250,null,null,2700]
[null,46,0,850,"2024-07-01",500,null,null,1350,null,1350,null,null,null,null,null,null,null,null,null,null,null,null,null,null,null,null,null,null,null,null,null,null,null,null,null,null,null,46,0,850,"2024-07-01",500,null,null,1350]
[null,47,0,1250,"2024-07-01",400,null,null,1650,null,1650,null,null,null,null,null,null,null,null,null,null,null,null,null,null,null,null,null,null,null,null,null,null,null,null,null,null,null,47,0,1250,"2024-07-01",400,null,null,1650]
[null,48,0,1650,"2024-07-01",600,null,null,2250,null,2250,null,null,null,null,null,null,null,null,null,null,null,null,null,null,null,null,null,null,null,null,null,null,null,null,null,null,null,48,0,1650,"2024-07-01",600,null,null,2250]
[null,49,0,2050,"2024-07-01",350,null,null,2400,null,2400,null,null,null,null,null,null,null,null,null,null,null,null,null,null,null,null,null,null,null,null,null,null,null,null,null,null,null,49,0,2050,"2024-07-01",350,null,null,2400]
[null,50,0,2450,"2024-07-01",250,null,null,2700,null,2700,null,null,null,null,null,null,null,null,null,null,null,null,null,null,null,null,null,null,null,null,null,null,null,null,null,null,null,50,0,2450,"2024-07-01",250,null,null,2700]
[null,51,0,850,"2024-07-01",500,null,null,1350,null,1350,null,null,null,null,null,null,null,null,null,null,null,null,null,null,null,null,null,null,null,null,null,null,null,null,null,null,null,51,0,850,"2024-07-01",500,null,null,1350]
[null,52,0,1250,"2024-07-01",400,null,null,1650,null,1650,null,null,null,null,null,null,null,null,null,null,null,null,null,null,null,null,null,null,null,null,null,null,null,null,null,null,null,52,0,1250,"2024-07-01",400,null,null,1650]
[null,53,0,1650,"2024-07-01",600,null,null,2250,null,2250,null,null,null,null,null,null,null,null,null,null,null,null,null,null,null,null,null,null,null,null,null,null,null,null,null,null,null,53,0,1650,"2024-07-01",600,null,null,2250]
[null,54,0,2050,"2024-07-01",350,null,null,2400,null,2400,null,null,null,null,null,null,null,null,null,null,null,null,null,null,null,null,null,null,null,null,null,null,null,null,null,null,null,54,0,2050,"2024-07-01",350,null,null,2400]
[null,55,0,2450,"2024-07-01",250,null,null,2700,null,2700,null,null,null,null,null,null,null,null,null,null,null,null,null,null,null,null,null,null,null,null,null,null,null,null,null,null,null,55,0,2450,"2024-07-01",250,null,null,2700]
[null,56,0,850,"2024-07-01",500,null,null,1350,null,1350,null,null,null,null,null,null,null,null,null,null,null,null,null,null,null,null,null,null,null,null,null,null,null,null,null,null,null,56,0,850,"2024-07-01",500,null,null,1350]
[null,57,0,1250,"2024-07-01",400,null,null,1650,null,1650,null,null,null,null,null,null,null,null,null,null,null,null,null,null,null,null,null,null,null,null,null,null,null,null,null,null,null,57,0,1250,"2024-07-01",400,null,null,1650]
[null,58,0,1650,"2024-07-01",600,null,null,2250,null,2250,null,null,null,null,null,null,null,null,null,null,null,null,null,null,null,null,null,null,null,null,null,null,null,null,null,null,null,58,0,1650,"2024-07-01",600,null,null,2250]
[null,59,0,2050,"2024-07-01",350,null,null,2400,null,2400,null,null,null,null,null,null,null,null,null,null,null,null,null,null,null,null,null,null,null,null,null,null,null,null,null,null,null,59,0,2050,"2024-07-01",350,null,null,2400]
[null,60,0,2450,"2024-07-01",250,null,null,2700,null,2700,null,null,null,null,null,null,null,null,null,null,null,null,null,null,null,null,null,null,null,null,null,null,null,null,null,null,null,60,0,2450,"2024-07-01",250,null,null,2700]
[null,61,0,850,"2024-07-01",500,null,null,1350,null,1350,null,null,null,null,null,null,null,null,null,null,null,null,null,null,null,null,null,null,null,null,null,null,null,null,null,null,null,61,0,850,"2024-07-01",500,null,null,1350]
[null,62,0,1250,"2024-07-01",400,null,null,1650,null,1650,null,null,null,null,null,null,null,null,null,null,null,null,null,null,null,null,null,null,null,null,null,null,null,null,null,null,null,62,0,1250,"2024-07-01",400,null,null,1650]
[null,63,0,1650,"2024-07-01",600,null,null,2250,null,2250,null,null,null,null,null,null,null,null,null,null,null,null,null,null,null,null,null,null,null,null,null,null,null,null,null,null,null,63,0,1650,"2024-07-01",600,null,null,2250]
[null,64,0,2050,"2024-07-01",350,null,null,2400,null,2400,null,null,null,null,null,null,null,null,null,null,null,null,null,null,null,null,null,null,null,null,null,null,null,null,null,null,null,64,0,2050,"2024-07-01",350,null,null,2400]
[null,65,0,2450,"2024-07-01",250,null,null,2700,null,2700,null,null,null,null,null,null,null,null,null,null,null,null,null,null,null,null,null,null,null,null,null,null,null,null,null,null,null,65,0,2450,"2024-07-01",250,null,null,2700]
[null,66,{"$f":"+AA67","v":0},850,"2024-07-01",500,null,null,1350,null,1350,null,null,null,null,null,null,null,null,null,null,null,null,null,null,null,null,null,null,null,null,null,null,null,null,null,null,null,66,0,850,"2024-07-01",500,null,null,1350]
[null,67,0,1250,"2024-07-01",400,null,null,1650,null,1650,null,null,null,null,null,null,null,null,null,null,null,null,null,null,null,null,null,null,null,null,null,null,null,null,null,null,null,67,0,1250,"2024-07-01",400,null,null,1650]
[null,68,0,1650,{"$f":"IF($N$1=\"\",\"\",$N$1)","v":"2024-07-01"},600,null,null,2250,null,2250,null,null,null,null,null,null,null,null,null,null,null,null,null,null,null,null,null,null,null,null,null,null,null,null,null,null,null,68,0,1650,"2024-07-01",600,null,null,2250]
[null,69,0,2050,"2024-07-01",350,null,null,2400,null,2400,null,null,null,null,null,null,null,null,null,null,null,null,null,null,null,null,null,null,null,null,null,null,null,null,null,null,null,69,0,2050,"2024-07-01",350,null,null,2400]
[null,70,0,2450,"2024-07-01",250,null,null,2700,null,2700,null,null,null,null,null,null,null,null,null,null,null,null,null,null,null,null,null,null,null,null,null,null,null,null,null,null,null,70,0,2450,"2024-07-01",250,null,null,2700]
[null,71,0,850,"2024-07-01",500,null,null,1350,null,1350,null,null,null,null,null,null,null,null,null,null,null,null,null,null,null,null,null,null,null,null,null,null,null,null,null,null,null,71,0,850,"2024-07-01",500,null,null,1350]
[null,72,0,1250,"2024-07-01",400,null,null,1650,null,1650,null,null,null,null,null,null,null,null,null,null,null,null,null,null,null,null,null,null,null,null,null,null,null,null,null,null,null,72,0,1250,"2024-07-01",400,null,null,1650]
[null,73,0,1650,"2024-07-01",600,null,null,{"$f":"+F74+D74-G74-H74","v":2250},null,{"$f":"+I74-J74","v":2250},null,null,null,null,null,null,null,null,null,null,null,null,null,null,null,null,null,null,null,null,null,null,null,null,null,null,null,73,0,1650,"2024-07-01",600,null,null,2250]
[null,74,0,2050,"2024-07-01",350,null,null,2400,null,2400,null,null,null,null,null,null,null,null,null,null,null,null,null,null,null,null,null,null,null,null,null,null,null,null,null,null,null,74,0,2050,"2024-07-01",350,null,null,2400]
[null,75,0,2450,"2024-07-01",250,null,null,2700,null,2700,null,null,null,null,null,null,null,null,null,null,null,null,null,null,null,null,null,null,null,null,null,null,null,null,null,null,null,75,0,2450,"2024-07-01",250,null,null,2700]
[null,76,0,850,"2024-07-01",500,null,null,1350,null,1350,null,null,null,null,null,null,null,null,null,null,null,null,null,null,null,null,null,null,null,null,null,null,null,null,null,null,null,76,0,850,"2024-07-01",500,null,null,1350]
[null,77,0,1250,"2024-07-01",400,null,null,1650,null,1650,null,null,null,null,null,null,null,null,null,null,null,null,null,null,null,null,null,null,null,null,null,null,null,null,null,null,null,77,0,1250,"2024-07-01",400,null,null,1650]
[null,78,0,1650,"2024-07-01",600,null,null,2250,null,2250,null,null,null,null,null,null,null,null,null,null,null,null,null,null,null,null,null,null,null,null,null,null,null,null,null,null,null,78,0,1650,"2024-07-01",600,null,null,2250]
[null,79,0,2050,"2024-07-01",350,null,null,2400,null,2400,null,null,null,null,null,null,null,null,null,null,null,null,null,null,null,null,null,null,null,null,null,null,null,null,null,null,null,79,0,2050,"2024-07-01",350,null,null,2400]
[null,80,0,2450,"2024-07-01",250,null,null,2700,null,2700,null,null,null,null,null,null,null,null,null,null,null,null,null,null,null,null,null,null,null,null,null,null,null,null,null,null,null,80,0,2450,"2024-07-01",250,null,null,2700]
[null,81,0,850,"2024-07-01",500,null,null,1350,null,1350,null,null,null,null,null,null,null,null,null,null,null,null,null,null,null,null,null,null,null,null,null,null,null,null,null,null,null,81,0,850,"2024-07-01",500,null,null,1350]
[null,82,0,1250,"2024-07-01",400,null,null,1650,null,1650,null,null,null,null,null,null,null,null,null,null,null,null,null,null,null,null,null,null,null,null,null,null,null,null,null,null,null,82,0,1250,"2024-07-01",400,null,null,1650]
[null,83,0,1650,"2024-07-01",600,null,null,2250,null,2250,null,null,null,null,null,null,null,null,null,null,null,null,null,null,null,null,null,null,null,null,null,null,null,null,null,null,null,83,0,1650,"2024-07-01",600,null,null,2250]
[null,84,0,2050,"2024-07-01",350,null,null,2400,null,2400,null,null,null,null,null,null,null,null,null,null,null,null,null,null,null,null,null,null,null,null,null,null,null,null,null,null,null,84,0,2050,"2024-07-01",350,null,null,2400]
[null,85,0,2450,"2024-07-01",250,null,null,2700,null,2700,null,null,null,null,null,null,null,null,null,null,null,null,null,null,null,null,null,null,null,null,null,null,null,null,null,null,null,85,0,2450,"2024-07-01",250,null,null,2700]
[null,86,0,850,"2024-07-01",500,null,null,1350,null,1350,null,null,null,null,null,null,null,null,null,null,null,null,null,null,null,null,null,null,null,null,null,null,null,null,null,null,null,86,0,850,"2024-07-01",500,null,null,1350]
[null,87,0,1250,"2024-07-01",400,null,null,1650,null,1650,null,null,null,null,null,null,null,null,null,null,null,null,null,null,null,null,null,null,null,null,null,null,null,null,null,null,null,87,0,1250,"2024-07-01",400,null,null,1650]
[null,88,0,1650,"2024-07-01",600,null,null,2250,null,2250,null,null,null,null,null,null,null,null,null,null,null,null,null,null,null,null,null,null,null,null,null,null,null,null,null,null,null,88,0,1650,"2024-07-01",600,null,null,2250]
[null,89,0,2050,"2024-07-01",350,null,null,2400,null,2400,null,null,null,null,null,null,null,null,null,null,null,null,null,null,null,null,null,null,null,null,null,null,null,null,null,null,null,89,0,2050,"2024-07-01",350,null,null,2400]
[null,90,0,2450,"2024-07-01",250,null,null,2700,null,2700,null,null,null,null,null,null,null,null,null,null,null,null,null,null,null,null,null,null,null,null,null,null,null,null,null,null,null,90,0,2450,"2024-07-01",250,null,null,2700]
[null,91,0,850,"2024-07-01",500,null,null,1350,null,1350,null,null,null,null,null,null,null,null,null,null,null,null,null,null,null,null,null,null,null,null,null,null,null,null,null,null,null,91,0,850,"2024-07-01",500,null,null,1350]
[null,92,0,1250,"2024-07-01",400,null,null,1650,null,1650,null,null,null,null,null,null,null,null,null,null,null,null,null,null,null,null,null,null,null,null,null,null,null,null,null,null,null,92,0,1250,"2024-07-01",400,null,null,1650]
[null,93,0,1650,"2024-07-01",600,null,null,2250,null,2250,null,null,null,null,null,null,null,null,null,null,null,null,null,null,null,null,null,null,null,null,null,null,null,null,null,null,null,93,0,1650,"2024-07-01",600,null,null,2250]
[null,94,0,2050,"2024-07-01",350,null,null,2400,null,2400,null,null,null,null,null,null,null,null,null,null,null,null,null,null,null,null,null,null,null,null,null,null,null,null,null,null,null,94,0,2050,"2024-07-01",350,null,null,2400]
[null,95,0,2450,"2024-07-01",250,null,null,2700,null,2700,null,null,null,null,null,null,null,null,null,null,null,null,null,null,null,null,null,null,null,null,null,null,null,null,null,null,null,95,0,2450,"2024-07-01",250,null,null,2700]
[null,96,0,850,"2024-07-01",500,null,null,1350,null,1350,null,null,null,null,null,null,null,null,null,null,null,null,null,null,null,null,null,null,null,null,null,null,null,null,null,null,null,96,0,850,"2024-07-01",500,null,null,1350]
[null,97,0,1250,"2024-07-01",400,null,null,1650,null,1650,null,null,null,null,null,null,null,null,null,null,null,null,null,null,null,null,null,null,null,null,null,null,null,null,null,null,null,97,0,1250,"2024-07-01",400,null,null,1650]
[null,98,0,1650,"2024-07-01",600,null,null,2250,null,2250,null,null,null,null,null,null,null,null,null,null,null,null,null,null,null,null,null,null,null,null,null,null,null,null,null,null,null,98,0,1650,"2024-07-01",600,null,null,2250]
[null,99,0,2050,"2024-07-01",350,null,null,2400,null,2400,null,null,null,null,null,null,null,null,null,null,null,null,null,null,null,null,null,null,null,null,null,null,null,null,null,null,null,99,0,2050,"2024-07-01",350,null,null,2400]
[null,100,0,2450,"2024-07-01",250,null,null,2700,null,2700,null,null,null,null,null,null,null,null,null,null,null,null,null,null,null,null,null,null,null,null,null,null,null,null,null,null,null,100,0,2450,"2024-07-01",250,null,null,2700]
[null,101,0,850,"2024-07-01",500,null,null,1350,null,1350,null,null,null,null,null,null,null,null,null,null,null,null,null,null,null,null,null,null,null,null,null,null,null,null,null,null,null,101,0,850,"2024-07-01",500,null,null,1350]
[null,102,0,1250,"2024-07-01",400,null,null,1650,null,1650,null,null,null,null,null,null,null,null,null,null,null,null,null,null,null,null,null,null,null,null,null,null,null,null,null,null,null,102,0,1250,"2024-07-01",400,null,null,1650]
[null,103,0,1650,"2024-07-01",600,null,null,2250,null,2250,null,null,null,null,null,null,null,null,null,null,null,null,null,null,null,null,null,null,null,null,null,null,null,null,null,null,null,103,0,1650,"2024-07-01",600,null,null,2250]
[null,104,0,2050,"2024-07-01",350,null,null,2400,null,2400,null,null,null,null,null,null,null,null,null,null,null,null,null,null,null,null,null,null,null,null,null,null,null,null,null,null,null,104,0,2050,"2024-07-01",350,null,null,2400]
[null,105,0,2450,"2024-07-01",250,null,null,2700,null,2700,null,null,null,null,null,null,null,null,null,null,null,null,null,null,null,null,null,null,null,null,null,null,null,null,null,null,null,105,0,2450,"2024-07-01",250,null,null,2700]
[null,106,0,850,"2024-07-01",500,null,null,1350,null,1350,null,null,null,null,null,null,null,null,null,null,null,null,null,null,null,null,null,null,null,null,null,null,null,null,null,null,null,106,0,850,"2024-07-01",500,null,null,1350]
[null,107,0,1250,"2024-07-01",400,null,null,1650,null,1650,null,null,null,null,null,null,null,null,null,null,null,null,null,null,null,null,null,null,null,null,null,null,null,null,null,null,null,107,0,1250,"2024-07-01",400,null,null,1650]
[null,108,0,1650,"2024-07-01",600,null,null,2250,null,2250,null,null,null,null,null,null,null,null,null,null,null,null,null,null,null,null,null,null,null,null,null,null,null,null,null,null,null,108,0,1650,"2024-07-01",600,null,null,2250]
[null,109,0,2050,"2024-07-01",350,null,null,2400,null,2400,null,null,null,null,null,null,null,null,null,null,null,null,null,null,null,null,null,null,null,null,null,null,null,null,null,null,null,109,0,2050,"2024-07-01",350,null,null,2400]
[null,110,0,2450,"2024-07-01",250,null,null,2700,null,2700,null,null,null,null,null,null,null,null,null,null,null,null,null,null,null,null,null,null,null,null,null,null,null,null,null,null,null,110,0,2450,"2024-07-01",250,null,null,2700]